[Event "Early-Titled-Tuesday-Blitz-October-17-2023"]
[Site "Chess.com"]
[Date "2023.10.17"]
[Round "1"]
[White "guillembaches"]
[Black "kleinebeer98"]
[Result "1-0"]
[WhiteElo "2520"]
[BlackElo "2857"]
[TimeControl "180+1"]
[EndTime "8:08:40 PDT"]
[Termination "guillembaches won on time"]

1. d4 {[%clk 0:03:00.9]} 1... Nf6 {[%clk 0:02:59.8]} 2. Nf3 {[%clk 0:03:01]}
2... Nc6 {[%clk 0:02:59.2]} 3. Bg5 {[%clk 0:03:00.9]} 3... e6 {[%clk 0:02:56.9]}
4. Nbd2 {[%clk 0:02:58.9]} 4... h6 {[%clk 0:02:56.5]} 5. Bh4 {[%clk 0:02:58.8]}
5... g5 {[%clk 0:02:55.7]} 6. Bg3 {[%clk 0:02:58.3]} 6... g4 {[%clk 0:02:56.2]}
7. Ne5 {[%clk 0:02:46.7]} 7... Nxd4 {[%clk 0:02:55.1]} 8. e3 {[%clk 0:02:37.9]}
8... Nf5 {[%clk 0:02:51.4]} 9. Nxg4 {[%clk 0:02:36.1]} 9... d5 {[%clk
0:02:44.1]} 10. Bd3 {[%clk 0:02:21.1]} 10... Nxg3 {[%clk 0:02:39.7]} 11. hxg3
{[%clk 0:02:20.2]} 11... Bg7 {[%clk 0:02:36.1]} 12. c3 {[%clk 0:02:09.3]} 12...
Bd7 {[%clk 0:02:16]} 13. Ne5 {[%clk 0:02:02.6]} 13... Qe7 {[%clk 0:02:13.8]} 14.
Ndf3 {[%clk 0:01:56.4]} 14... O-O-O {[%clk 0:02:13.9]} 15. Nxd7 {[%clk
0:01:54.1]} 15... Nxd7 {[%clk 0:02:12.8]} 16. Qa4 {[%clk 0:01:48.4]} 16... Kb8
{[%clk 0:02:13.2]} 17. Qh4 {[%clk 0:01:37.4]} 17... Bf6 {[%clk 0:02:12.5]} 18.
Qh5 {[%clk 0:01:36.6]} 18... e5 {[%clk 0:02:10.2]} 19. Bf5 {[%clk 0:01:30.7]}
19... Nc5 {[%clk 0:02:06.7]} 20. O-O {[%clk 0:01:28]} 20... Rhg8 {[%clk
0:02:02]} 21. Rad1 {[%clk 0:01:26.7]} 21... e4 {[%clk 0:02:02.1]} 22. Nd4 {[%clk
0:01:23]} 22... Rg5 {[%clk 0:01:59.7]} 23. Qh3 {[%clk 0:01:16.2]} 23... Nd3
{[%clk 0:01:55]} 24. Rxd3 {[%clk 0:01:07]} 24... exd3 {[%clk 0:01:55.3]} 25.
Bxd3 {[%clk 0:01:06.1]} 25... h5 {[%clk 0:01:52.7]} 26. Rd1 {[%clk 0:01:02.8]}
26... Rdg8 {[%clk 0:01:50.2]} 27. Nf5 {[%clk 0:00:54.4]} 27... Qe8 {[%clk
0:01:43.3]} 28. Nh4 {[%clk 0:00:49.5]} 28... Rg4 {[%clk 0:01:39.8]} 29. Bf5
{[%clk 0:00:47.8]} 29... Ra4 {[%clk 0:01:28.4]} 30. a3 {[%clk 0:00:44.4]} 30...
Bxh4 {[%clk 0:01:20.4]} 31. gxh4 {[%clk 0:00:44.5]} 31... Qb5 {[%clk 0:01:09.4]}
32. Rd2 {[%clk 0:00:39.6]} 32... Ra6 {[%clk 0:01:04.6]} 33. g3 {[%clk
0:00:38.5]} 33... Rf6 {[%clk 0:01:02.4]} 34. Bd3 {[%clk 0:00:37.3]} 34... Qc5
{[%clk 0:00:59.8]} 35. Bf1 {[%clk 0:00:36.5]} 35... a6 {[%clk 0:00:56]} 36. Bg2
{[%clk 0:00:35]} 36... Rd8 {[%clk 0:00:52.6]} 37. Qh1 {[%clk 0:00:32.1]} 37...
c6 {[%clk 0:00:45.9]} 38. Kh2 {[%clk 0:00:31.4]} 38... Rg8 {[%clk 0:00:44.4]}
39. Qd1 {[%clk 0:00:30.9]} 39... Rg4 {[%clk 0:00:44.7]} 40. Bf3 {[%clk
0:00:29.1]} 40... Rg8 {[%clk 0:00:43.2]} 41. Bxh5 {[%clk 0:00:29]} 41... Qd6
{[%clk 0:00:41.9]} 42. Bf3 {[%clk 0:00:27.6]} 42... Rh6 {[%clk 0:00:38.4]} 43.
Rd4 {[%clk 0:00:26.2]} 43... Rgh8 {[%clk 0:00:35.4]} 44. Rf4 {[%clk 0:00:25.5]}
44... f5 {[%clk 0:00:33.7]} 45. Kg2 {[%clk 0:00:25.4]} 45... Rg8 {[%clk
0:00:32.6]} 46. Qd3 {[%clk 0:00:25.5]} 46... Rf6 {[%clk 0:00:22.8]} 47. c4
{[%clk 0:00:22.2]} 47... Rd8 {[%clk 0:00:09.4]} 48. cxd5 {[%clk 0:00:22.2]}
48... cxd5 {[%clk 0:00:10.3]} 49. Rb4 {[%clk 0:00:21.6]} 49... Rf7 {[%clk
0:00:06.5]} 50. Qb3 {[%clk 0:00:21.2]} 50... Rc7 {[%clk 0:00:04.3]} 51. Rd4
{[%clk 0:00:21.1]} 51... Qe5 {[%clk 0:00:02.7]} 52. Qd3 {[%clk 0:00:21.1]} 52...
Qe6 {[%clk 0:00:02.6]} 53. Rf4 {[%clk 0:00:20.9]} 53... Qe5 {[%clk 0:00:03]} 54.
Rxf5 {[%clk 0:00:21]} 54... Qxb2 {[%clk 0:00:03.8]} 55. Rxd5 {[%clk 0:00:20.9]}
55... Rxd5 {[%clk 0:00:04.3]} 56. Qxd5 {[%clk 0:00:21]} 56... Rc2 {[%clk
0:00:05]} 57. Kh3 {[%clk 0:00:18.8]} 57... Rxf2 {[%clk 0:00:04.5]} 58. h5 {[%clk
0:00:18.6]} 58... Rh2+ {[%clk 0:00:03.6]} 59. Kg4 {[%clk 0:00:18.9]} 59... Qg7+
{[%clk 0:00:04.5]} 60. Qg5 {[%clk 0:00:17.2]} 60... Qd7+ {[%clk 0:00:05.1]} 61.
Qf5 {[%clk 0:00:16.3]} 61... Qg7+ {[%clk 0:00:04.8]} 62. Qg5 {[%clk 0:00:16.2]}
62... Qd7+ {[%clk 0:00:04.2]} 63. Qf5 {[%clk 0:00:16.6]} 63... Qd8 {[%clk
0:00:04.9]} 64. Qf4+ {[%clk 0:00:15.9]} 64... Ka7 {[%clk 0:00:04.8]} 65. Qe4
{[%clk 0:00:16]} 65... Qg8+ {[%clk 0:00:04.1]} 66. Qg6 {[%clk 0:00:15.5]} 66...
Qc8+ {[%clk 0:00:04.6]} 67. Qf5 {[%clk 0:00:15.7]} 67... Qg8+ {[%clk 0:00:03.3]}
68. Qg6 {[%clk 0:00:16]} 68... Qd8 {[%clk 0:00:02.6]} 69. Qe4 {[%clk 0:00:15.3]}
69... Qc7 {[%clk 0:00:01.9]} 70. Qf5 {[%clk 0:00:15.2]} 70... Qc4+ {[%clk
0:00:02]} 71. Qf4 {[%clk 0:00:15.4]} 71... Qc7 {[%clk 0:00:02.9]} 72. Qxc7
{[%clk 0:00:15.1]} 1-0

[Event "Early-Titled-Tuesday-Blitz-October-17-2023"]
[Site "Chess.com"]
[Date "2023.10.17"]
[Round "1"]
[White "Thormento16"]
[Black "Sadykov_Ramil"]
[Result "1/2-1/2"]
[WhiteElo "2302"]
[BlackElo "2604"]
[TimeControl "180+1"]
[EndTime "8:08:40 PDT"]
[Termination "Game drawn - insufficient material"]

1. e4 {[%clk 0:02:58.8]} 1... c5 {[%clk 0:02:59.7]} 2. Nf3 {[%clk 0:02:57.3]}
2... e6 {[%clk 0:03:00.4]} 3. d4 {[%clk 0:02:57.8]} 3... cxd4 {[%clk 0:03:01.3]}
4. Nxd4 {[%clk 0:02:58.6]} 4... Nf6 {[%clk 0:03:01.8]} 5. Nc3 {[%clk 0:02:59.1]}
5... Bb4 {[%clk 0:03:02.3]} 6. Bd3 {[%clk 0:02:46.7]} 6... O-O {[%clk
0:02:55.1]} 7. O-O {[%clk 0:02:46.3]} 7... Bxc3 {[%clk 0:02:52.1]} 8. bxc3
{[%clk 0:02:47.2]} 8... e5 {[%clk 0:02:52.5]} 9. Nf5 {[%clk 0:02:22.4]} 9... d5
{[%clk 0:02:51.2]} 10. Ng3 {[%clk 0:02:15.1]} 10... Nc6 {[%clk 0:02:38.7]} 11.
exd5 {[%clk 0:02:14.6]} 11... Nxd5 {[%clk 0:02:26]} 12. c4 {[%clk 0:02:14.4]}
12... Nf4 {[%clk 0:02:20.8]} 13. Bxf4 {[%clk 0:02:14.1]} 13... exf4 {[%clk
0:02:21.7]} 14. Ne4 {[%clk 0:02:08.2]} 14... Bf5 {[%clk 0:02:13.5]} 15. Nc5
{[%clk 0:02:01.6]} 15... Qg5 {[%clk 0:01:52.1]} 16. Bxf5 {[%clk 0:01:57.7]}
16... Qxf5 {[%clk 0:01:53]} 17. Qd5 {[%clk 0:01:52.2]} 17... Qxc2 {[%clk
0:01:47.1]} 18. Nxb7 {[%clk 0:01:51.2]} 18... Nb4 {[%clk 0:01:43.2]} 19. Qd4
{[%clk 0:01:41.7]} 19... f3 {[%clk 0:01:36.8]} 20. gxf3 {[%clk 0:01:30.1]} 20...
Rab8 {[%clk 0:01:32.8]} 21. Nc5 {[%clk 0:01:23.6]} 21... Qg6+ {[%clk 0:01:12]}
22. Qg4 {[%clk 0:01:23.5]} 22... Qc6 {[%clk 0:00:55.2]} 23. Nd7 {[%clk
0:01:16.9]} 23... f5 {[%clk 0:00:54]} 24. Nxb8 {[%clk 0:01:11.1]} 24... Rxb8
{[%clk 0:00:51.4]} 25. Qf4 {[%clk 0:01:09.8]} 25... Rf8 {[%clk 0:00:39.1]} 26.
a3 {[%clk 0:01:08.3]} 26... Nd3 {[%clk 0:00:38.1]} 27. Qd4 {[%clk 0:01:06.5]}
27... Qxf3 {[%clk 0:00:36.5]} 28. Qd5+ {[%clk 0:01:04.1]} 28... Qxd5 {[%clk
0:00:35.8]} 29. cxd5 {[%clk 0:01:05]} 29... Rd8 {[%clk 0:00:35.9]} 30. Rab1
{[%clk 0:01:01.4]} 30... Rxd5 {[%clk 0:00:28.1]} 31. Rb7 {[%clk 0:01:02]} 31...
Ra5 {[%clk 0:00:25.1]} 32. Rd1 {[%clk 0:01:00.7]} 32... Rxa3 {[%clk 0:00:16.7]}
33. Rd7 {[%clk 0:00:56.2]} 33... Nf4 {[%clk 0:00:16.1]} 34. Rb1 {[%clk
0:00:54.6]} 34... h6 {[%clk 0:00:12.4]} 35. Rb8+ {[%clk 0:00:53.7]} 35... Kh7
{[%clk 0:00:12.1]} 36. Rb1 {[%clk 0:00:53.9]} 36... Kg6 {[%clk 0:00:10.5]} 37.
h4 {[%clk 0:00:51.9]} 37... Rh3 {[%clk 0:00:06.6]} 38. Rbb7 {[%clk 0:00:50.2]}
38... Rxh4 {[%clk 0:00:05.6]} 39. Rxg7+ {[%clk 0:00:50.3]} 39... Kh5 {[%clk
0:00:05.6]} 40. Rxa7 {[%clk 0:00:50.2]} 40... Rg4+ {[%clk 0:00:05.2]} 41. Rxg4
{[%clk 0:00:49.7]} 41... fxg4 {[%clk 0:00:06.1]} 42. Ra6 {[%clk 0:00:46.8]}
42... Kg5 {[%clk 0:00:06.1]} 43. Ra5+ {[%clk 0:00:45.5]} 43... Kg6 {[%clk
0:00:06.2]} 44. Kh2 {[%clk 0:00:45.1]} 44... Nh5 {[%clk 0:00:03.6]} 45. Kg2
{[%clk 0:00:45]} 45... Nf6 {[%clk 0:00:02.4]} 46. Kg3 {[%clk 0:00:44.5]} 46...
Ne4+ {[%clk 0:00:02.9]} 47. Kxg4 {[%clk 0:00:41.3]} 47... Nxf2+ {[%clk
0:00:03.2]} 48. Kf4 {[%clk 0:00:41.7]} 48... Nd3+ {[%clk 0:00:03.6]} 49. Kg4
{[%clk 0:00:39.9]} 49... Nf2+ {[%clk 0:00:03.7]} 50. Kh4 {[%clk 0:00:40.4]}
50... h5 {[%clk 0:00:03.3]} 51. Ra6+ {[%clk 0:00:40.8]} 51... Kf5 {[%clk
0:00:03.1]} 52. Kxh5 {[%clk 0:00:41.7]} 52... Ne4 {[%clk 0:00:03.5]} 53. Ra8
{[%clk 0:00:42]} 53... Ke5 {[%clk 0:00:03.8]} 54. Kg4 {[%clk 0:00:42]} 54...
Nf6+ {[%clk 0:00:03.9]} 55. Kf3 {[%clk 0:00:42.3]} 55... Kf5 {[%clk 0:00:04.1]}
56. Ra5+ {[%clk 0:00:42.8]} 56... Ke6 {[%clk 0:00:04.1]} 57. Kf4 {[%clk
0:00:42.2]} 57... Nd5+ {[%clk 0:00:04.6]} 58. Kg5 {[%clk 0:00:42.3]} 58... Ke5
{[%clk 0:00:04.7]} 59. Ra8 {[%clk 0:00:42.2]} 59... Ke6 {[%clk 0:00:04]} 60. Kg4
{[%clk 0:00:41.6]} 60... Ke5 {[%clk 0:00:04.2]} 61. Kf3 {[%clk 0:00:42]} 61...
Kd4 {[%clk 0:00:04.1]} 62. Rd8 {[%clk 0:00:41.9]} 62... Ke5 {[%clk 0:00:04.6]}
63. Ke2 {[%clk 0:00:41.4]} 63... Ke4 {[%clk 0:00:04.9]} 64. Re8+ {[%clk
0:00:41.6]} 64... Kd4 {[%clk 0:00:05.1]} 65. Rd8 {[%clk 0:00:42.3]} 65... Ke4
{[%clk 0:00:05.3]} 66. Kd2 {[%clk 0:00:42.6]} 66... Kd4 {[%clk 0:00:05.7]} 67.
Rd7 {[%clk 0:00:42.3]} 67... Kc4 {[%clk 0:00:05.6]} 68. Rh7 {[%clk 0:00:40.8]}
68... Kd4 {[%clk 0:00:05.8]} 69. Rh4+ {[%clk 0:00:41.4]} 69... Ke5 {[%clk
0:00:06.1]} 70. Kd3 {[%clk 0:00:41.6]} 70... Nf4+ {[%clk 0:00:06.6]} 71. Kd2
{[%clk 0:00:38.5]} 71... Ke4 {[%clk 0:00:06.6]} 72. Rh1 {[%clk 0:00:38.5]} 72...
Kf3 {[%clk 0:00:06.6]} 73. Rf1+ {[%clk 0:00:37.2]} 73... Ke4 {[%clk 0:00:06.9]}
74. Ra1 {[%clk 0:00:36.8]} 74... Kd4 {[%clk 0:00:06.3]} 75. Ra4+ {[%clk
0:00:36.4]} 75... Ke5 {[%clk 0:00:06.9]} 76. Ke3 {[%clk 0:00:36.6]} 76... Nd5+
{[%clk 0:00:07.5]} 77. Kf3 {[%clk 0:00:34.4]} 77... Kf5 {[%clk 0:00:07.1]} 78.
Re4 {[%clk 0:00:33]} 78... Nf6 {[%clk 0:00:06.6]} 79. Rb4 {[%clk 0:00:32.2]}
79... Ke5 {[%clk 0:00:06.7]} 80. Ke3 {[%clk 0:00:28]} 80... Nd5+ {[%clk
0:00:06.5]} 81. Kd3 {[%clk 0:00:28.6]} 81... Nxb4+ {[%clk 0:00:07.4]} 1/2-1/2

[Event "Early-Titled-Tuesday-Blitz-October-17-2023"]
[Site "Chess.com"]
[Date "2023.10.17"]
[Round "1"]
[White "Schattman"]
[Black "BlueWizzard"]
[Result "0-1"]
[WhiteElo "2486"]
[BlackElo "2828"]
[TimeControl "180+1"]
[EndTime "8:08:45 PDT"]
[Termination "BlueWizzard won on time"]

1. d4 {[%clk 0:03:00.9]} 1... g6 {[%clk 0:02:58.4]} 2. e4 {[%clk 0:02:59.9]}
2... d5 {[%clk 0:02:58.5]} 3. Nc3 {[%clk 0:03:00.6]} 3... dxe4 {[%clk
0:02:58.5]} 4. Nxe4 {[%clk 0:03:00.8]} 4... Bg7 {[%clk 0:02:58.5]} 5. Be3 {[%clk
0:03:00.1]} 5... Nh6 {[%clk 0:02:58.4]} 6. Bb5+ {[%clk 0:02:53.2]} 6... c6
{[%clk 0:02:57.6]} 7. Bc4 {[%clk 0:02:36.9]} 7... Nf5 {[%clk 0:02:54.2]} 8. c3
{[%clk 0:02:33.4]} 8... O-O {[%clk 0:02:43]} 9. Bf4 {[%clk 0:02:28.7]} 9... Nd7
{[%clk 0:02:38.6]} 10. Nf3 {[%clk 0:02:27]} 10... Nb6 {[%clk 0:02:37.8]} 11. Bb3
{[%clk 0:02:25.2]} 11... a5 {[%clk 0:02:30.3]} 12. a4 {[%clk 0:02:22.1]} 12...
Nd5 {[%clk 0:02:30.4]} 13. Bd2 {[%clk 0:02:19.8]} 13... Nd6 {[%clk 0:02:29]} 14.
Nxd6 {[%clk 0:02:11.6]} 14... Qxd6 {[%clk 0:02:27.1]} 15. O-O {[%clk 0:02:08.7]}
15... c5 {[%clk 0:02:24.8]} 16. Bg5 {[%clk 0:01:55.9]} 16... cxd4 {[%clk
0:02:22.6]} 17. Nxd4 {[%clk 0:01:49.4]} 17... Nf6 {[%clk 0:02:11.4]} 18. Nb5
{[%clk 0:01:40.7]} 18... Qc5 {[%clk 0:02:02.3]} 19. Be3 {[%clk 0:01:34.5]} 19...
Qc6 {[%clk 0:01:56.3]} 20. Nd4 {[%clk 0:01:32.9]} 20... Qe4 {[%clk 0:01:51.8]}
21. Qf3 {[%clk 0:01:21.4]} 21... Qxf3 {[%clk 0:01:48.2]} 22. Nxf3 {[%clk
0:01:20.6]} 22... Bd7 {[%clk 0:01:49.1]} 23. Rfd1 {[%clk 0:01:18.1]} 23... Bg4
{[%clk 0:01:47.7]} 24. h3 {[%clk 0:01:10]} 24... Bxf3 {[%clk 0:01:47.8]} 25.
gxf3 {[%clk 0:01:10.9]} 25... Rfc8 {[%clk 0:01:43.6]} 26. Rd2 {[%clk 0:01:04.2]}
26... Rab8 {[%clk 0:01:37.2]} 27. Bf4 {[%clk 0:00:57.5]} 27... Ra8 {[%clk
0:01:37.1]} 28. Be3 {[%clk 0:00:57.5]} 28... Nh5 {[%clk 0:01:37.3]} 29. Rd7
{[%clk 0:00:53.6]} 29... Bf6 {[%clk 0:01:35.2]} 30. Rxb7 {[%clk 0:00:47]} 30...
Rab8 {[%clk 0:01:35.1]} 31. Rxb8 {[%clk 0:00:37]} 31... Rxb8 {[%clk 0:01:36]}
32. Ra3 {[%clk 0:00:36.3]} 32... e6 {[%clk 0:01:34]} 33. Bc4 {[%clk 0:00:31.2]}
33... Rxb2 {[%clk 0:01:33.1]} 34. Bb5 {[%clk 0:00:28.1]} 34... Be5 {[%clk
0:01:24.4]} 35. c4 {[%clk 0:00:22.9]} 35... Rc2 {[%clk 0:01:15.1]} 36. Rd3
{[%clk 0:00:21.7]} 36... Nf4 {[%clk 0:01:14.9]} 37. Bxf4 {[%clk 0:00:18.8]}
37... Bxf4 {[%clk 0:01:15.8]} 38. Kg2 {[%clk 0:00:19.3]} 38... Kg7 {[%clk
0:01:13]} 39. Kf1 {[%clk 0:00:18.2]} 39... Bc7 {[%clk 0:01:11.3]} 40. Re3 {[%clk
0:00:14.7]} 40... Bb6 {[%clk 0:01:11.2]} 41. Re2 {[%clk 0:00:15]} 41... Rc3
{[%clk 0:01:11.9]} 42. Kg2 {[%clk 0:00:14.1]} 42... Kf6 {[%clk 0:01:12.3]} 43.
Rb2 {[%clk 0:00:13.5]} 43... Bd4 {[%clk 0:01:11.2]} 44. Rd2 {[%clk 0:00:13.2]}
44... e5 {[%clk 0:01:11.4]} 45. Re2 {[%clk 0:00:13]} 45... Kf5 {[%clk
0:01:10.9]} 46. Bd7+ {[%clk 0:00:12.4]} 46... Kg5 {[%clk 0:01:10.6]} 47. Bb5
{[%clk 0:00:08.5]} 47... h6 {[%clk 0:01:09.1]} 48. Ba6 {[%clk 0:00:08.6]} 48...
Kf4 {[%clk 0:01:08.4]} 49. Re4+ {[%clk 0:00:07.3]} 49... Kf5 {[%clk 0:01:09.1]}
50. Re2 {[%clk 0:00:07.3]} 50... Ke6 {[%clk 0:01:05.4]} 51. Bc8+ {[%clk
0:00:07.2]} 51... Kd6 {[%clk 0:01:05.8]} 52. Ba6 {[%clk 0:00:08]} 52... Kc5
{[%clk 0:01:06.1]} 53. Bb5 {[%clk 0:00:08.1]} 53... Kb4 {[%clk 0:01:06.4]} 54.
Rb2+ {[%clk 0:00:07.3]} 54... Kc5 {[%clk 0:01:06.3]} 55. Re2 {[%clk 0:00:07.1]}
55... Rd3 {[%clk 0:01:06.5]} 56. Rc2 {[%clk 0:00:06.9]} 56... Rd1 {[%clk
0:01:05.6]} 57. Re2 {[%clk 0:00:06.8]} 57... Kb4 {[%clk 0:01:03.9]} 58. Rc2
{[%clk 0:00:06.7]} 58... Kb3 {[%clk 0:01:01.8]} 59. Re2 {[%clk 0:00:06.6]} 59...
Rc1 {[%clk 0:01:02.3]} 60. Rd2 {[%clk 0:00:06.7]} 60... Kc3 {[%clk 0:01:02.2]}
61. Ra2 {[%clk 0:00:06]} 61... Rb1 {[%clk 0:01:00.5]} 62. Re2 {[%clk 0:00:05.1]}
62... Kd3 {[%clk 0:01:00.1]} 63. Ra2 {[%clk 0:00:04.7]} 63... Bc5 {[%clk
0:00:57.7]} 64. Kh2 {[%clk 0:00:02.6]} 64... f5 {[%clk 0:00:55.1]} 65. Kg2
{[%clk 0:00:02.8]} 65... g5 {[%clk 0:00:55.6]} 66. Kh2 {[%clk 0:00:03.2]} 66...
h5 {[%clk 0:00:56.1]} 67. Kg2 {[%clk 0:00:03.6]} 67... g4 {[%clk 0:00:54]} 68.
fxg4 {[%clk 0:00:03.1]} 68... hxg4 {[%clk 0:00:54.9]} 69. hxg4 {[%clk
0:00:03.6]} 69... fxg4 {[%clk 0:00:52.8]} 70. Kh2 {[%clk 0:00:03.1]} 70... e4
{[%clk 0:00:52.1]} 71. Kg2 {[%clk 0:00:03.2]} 71... Re1 {[%clk 0:00:46.1]} 72.
Kh2 {[%clk 0:00:03.1]} 72... Re2 {[%clk 0:00:46.6]} 73. Rxe2 {[%clk 0:00:02.3]}
73... Kxe2 {[%clk 0:00:47.5]} 74. Kg2 {[%clk 0:00:02.4]} 74... Bxf2 {[%clk
0:00:48.1]} 75. Bd7 {[%clk 0:00:02.5]} 75... Bc5 {[%clk 0:00:43.1]} 76. Bxg4+
{[%clk 0:00:01.6]} 76... Kd2 {[%clk 0:00:43.8]} 77. Kf1 {[%clk 0:00:01.9]} 77...
Kc3 {[%clk 0:00:43.2]} 78. Be2 {[%clk 0:00:02.8]} 78... Kb4 {[%clk 0:00:42.9]}
79. Ke1 {[%clk 0:00:02.4]} 79... Kxa4 {[%clk 0:00:43.4]} 80. Kd1 {[%clk
0:00:03.3]} 80... Kb3 {[%clk 0:00:43.9]} 81. Kc1 {[%clk 0:00:03.6]} 81... a4
{[%clk 0:00:43.3]} 82. Kb1 {[%clk 0:00:04.5]} 82... Kc3 {[%clk 0:00:43.5]} 83.
Bd1 {[%clk 0:00:05.4]} 83... a3 {[%clk 0:00:42.1]} 84. Ka2 {[%clk 0:00:05.1]}
84... Kd2 {[%clk 0:00:42.6]} 85. Bb3 {[%clk 0:00:04.4]} 85... e3 {[%clk
0:00:42.8]} 0-1

[Event "Early-Titled-Tuesday-Blitz-October-17-2023"]
[Site "Chess.com"]
[Date "2023.10.17"]
[Round "1"]
[White "Man-Chuk"]
[Black "tusplingher"]
[Result "0-1"]
[WhiteElo "2786"]
[BlackElo "2479"]
[TimeControl "180+1"]
[EndTime "8:08:46 PDT"]
[Termination "tusplingher won by resignation"]

1. e4 {[%clk 0:03:00]} 1... c5 {[%clk 0:02:58.9]} 2. Nf3 {[%clk 0:02:59.8]} 2...
d6 {[%clk 0:02:59.3]} 3. Bb5+ {[%clk 0:02:59.3]} 3... Bd7 {[%clk 0:02:56.9]} 4.
Bxd7+ {[%clk 0:02:57.4]} 4... Qxd7 {[%clk 0:02:55.6]} 5. c4 {[%clk 0:02:57.8]}
5... g6 {[%clk 0:02:53.4]} 6. d4 {[%clk 0:02:39.6]} 6... cxd4 {[%clk 0:02:52]}
7. Nxd4 {[%clk 0:02:38.2]} 7... Bg7 {[%clk 0:02:51.1]} 8. O-O {[%clk 0:02:36.3]}
8... Nc6 {[%clk 0:02:50.1]} 9. Be3 {[%clk 0:02:35.9]} 9... Nf6 {[%clk
0:02:50.3]} 10. f3 {[%clk 0:02:18.3]} 10... O-O {[%clk 0:02:47.2]} 11. Nc3
{[%clk 0:02:18.3]} 11... Rac8 {[%clk 0:02:43.7]} 12. b3 {[%clk 0:02:16.9]} 12...
a6 {[%clk 0:02:39.2]} 13. Rc1 {[%clk 0:02:06.3]} 13... Nxd4 {[%clk 0:02:34]} 14.
Bxd4 {[%clk 0:02:05.7]} 14... b5 {[%clk 0:02:34.6]} 15. cxb5 {[%clk 0:01:44.4]}
15... axb5 {[%clk 0:02:34]} 16. a4 {[%clk 0:01:44.1]} 16... bxa4 {[%clk
0:02:16]} 17. bxa4 {[%clk 0:01:42]} 17... Rc4 {[%clk 0:02:10]} 18. Nb5 {[%clk
0:01:33.7]} 18... Rfc8 {[%clk 0:02:03.5]} 19. Rxc4 {[%clk 0:01:30.3]} 19... Rxc4
{[%clk 0:02:02.8]} 20. Qb3 {[%clk 0:01:30.2]} 20... Qc6 {[%clk 0:01:37.2]} 21.
Bf2 {[%clk 0:00:59.7]} 21... Nd7 {[%clk 0:01:26.6]} 22. a5 {[%clk 0:00:52.2]}
22... Rc1 {[%clk 0:01:14.3]} 23. Be3 {[%clk 0:00:48.6]} 23... Rxf1+ {[%clk
0:01:09.3]} 24. Kxf1 {[%clk 0:00:49.5]} 24... Qa6 {[%clk 0:00:59.6]} 25. Qa4
{[%clk 0:00:40.4]} 25... Bc3 {[%clk 0:00:54.8]} 26. Kf2 {[%clk 0:00:26.4]} 26...
Bxa5 {[%clk 0:00:47.6]} 27. Qb3 {[%clk 0:00:14.3]} 27... Bb6 {[%clk 0:00:42.7]}
28. Nd4 {[%clk 0:00:14.7]} 28... Qa7 {[%clk 0:00:37.4]} 29. Qc3 {[%clk
0:00:06.9]} 29... Bc5 {[%clk 0:00:33.8]} 30. Kg3 {[%clk 0:00:06.8]} 30... Qa3
{[%clk 0:00:28.4]} 31. Qxa3 {[%clk 0:00:05.5]} 31... Bxa3 {[%clk 0:00:29.3]} 32.
Nc6 {[%clk 0:00:06.1]} 32... Kf8 {[%clk 0:00:26.8]} 33. h4 {[%clk 0:00:05.7]}
33... h5 {[%clk 0:00:24.8]} 34. Bh6+ {[%clk 0:00:05.8]} 34... Ke8 {[%clk
0:00:25.1]} 35. Bg5 {[%clk 0:00:06.7]} 35... e6 {[%clk 0:00:22.7]} 36. Bd2
{[%clk 0:00:06.2]} 36... Bc5 {[%clk 0:00:22.3]} 37. Kh3 {[%clk 0:00:03.2]} 37...
Bb6 {[%clk 0:00:22]} 38. g4 {[%clk 0:00:03.6]} 38... hxg4+ {[%clk 0:00:21.9]}
39. fxg4 {[%clk 0:00:04.5]} 39... Ne5 {[%clk 0:00:21.3]} 40. Nxe5 {[%clk
0:00:04.5]} 40... dxe5 {[%clk 0:00:22.2]} 41. h5 {[%clk 0:00:05.1]} 41... gxh5
{[%clk 0:00:22.6]} 42. gxh5 {[%clk 0:00:06]} 42... Kf8 {[%clk 0:00:23.1]} 43.
Kg4 {[%clk 0:00:06.6]} 43... Kg7 {[%clk 0:00:23.4]} 44. h6+ {[%clk 0:00:06.8]}
44... Kg6 {[%clk 0:00:23.6]} 45. Bc1 {[%clk 0:00:06.6]} 45... Bc5 {[%clk
0:00:23.1]} 46. Kf3 {[%clk 0:00:06.5]} 46... Bf8 {[%clk 0:00:23]} 47. Bb2 {[%clk
0:00:07.2]} 47... f6 {[%clk 0:00:22.1]} 48. Bc1 {[%clk 0:00:06.8]} 48... Bxh6
{[%clk 0:00:22.3]} 49. Ba3 {[%clk 0:00:07.1]} 49... Bf4 {[%clk 0:00:20.6]} 50.
Bd6 {[%clk 0:00:07.2]} 50... Kg5 {[%clk 0:00:17.9]} 51. Be7 {[%clk 0:00:06.9]}
51... Kg6 {[%clk 0:00:18.3]} 52. Bd6 {[%clk 0:00:07.3]} 52... Kh5 {[%clk
0:00:17.6]} 53. Be7 {[%clk 0:00:07.1]} 53... f5 {[%clk 0:00:16.9]} 54. Bc5
{[%clk 0:00:07]} 54... Kh4 {[%clk 0:00:15.1]} 55. Bb4 {[%clk 0:00:05.3]} 55...
Kh5 {[%clk 0:00:14]} 56. Bc5 {[%clk 0:00:05.1]} 56... Kg6 {[%clk 0:00:14.4]} 57.
Bb4 {[%clk 0:00:03.8]} 57... Kf7 {[%clk 0:00:14.8]} 58. Ke2 {[%clk 0:00:03.7]}
58... Ke8 {[%clk 0:00:14.1]} 59. Kd3 {[%clk 0:00:04.1]} 59... Kd7 {[%clk
0:00:14.4]} 60. Ba3 {[%clk 0:00:04.6]} 60... Kc6 {[%clk 0:00:14.8]} 61. Bb2
{[%clk 0:00:04.9]} 61... Kc5 {[%clk 0:00:14.7]} 62. Bc3 {[%clk 0:00:05.1]} 62...
Kb5 {[%clk 0:00:13.9]} 63. Be1 {[%clk 0:00:05.3]} 63... Ka4 {[%clk 0:00:12.8]}
64. Bh4 {[%clk 0:00:05.8]} 64... Kb3 {[%clk 0:00:13]} 65. Be1 {[%clk 0:00:06.1]}
65... Ka2 {[%clk 0:00:13.1]} 66. Bb4 {[%clk 0:00:06.3]} 66... Kb1 {[%clk
0:00:13.4]} 67. Ba3 {[%clk 0:00:06]} 67... Bg3 {[%clk 0:00:10.8]} 68. Bb4 {[%clk
0:00:05.9]} 68... Kc1 {[%clk 0:00:10.9]} 69. Ba5 {[%clk 0:00:05.7]} 69... Kd1
{[%clk 0:00:11.3]} 70. Bb4 {[%clk 0:00:06.3]} 70... Be1 {[%clk 0:00:10.6]} 71.
Bd6 {[%clk 0:00:06.5]} 71... Bg3 {[%clk 0:00:10.8]} 72. Bb4 {[%clk 0:00:07.2]}
72... f4 {[%clk 0:00:10.9]} 73. Bc5 {[%clk 0:00:02.8]} 73... f3 {[%clk
0:00:11.3]} 74. Bb6 {[%clk 0:00:02.8]} 74... f2 {[%clk 0:00:11.6]} 75. Bxf2
{[%clk 0:00:03.2]} 75... Bxf2 {[%clk 0:00:12.5]} 76. Kc3 {[%clk 0:00:03.2]}
76... Ke2 {[%clk 0:00:12.5]} 0-1